[Event "Titled Tuesday Blitz August 3 2021"]
[White "Shimelkov, Vasiliy"]
[Black "Bazeev, German"]
[WhiteFideId "13701630"]
[BlackFideId "24119350"]
[WhiteElo "2073"]
[BlackElo "2462"]
[Result "0-1"]
[Round "05"]
[TimeControl "180+1"]
[Date "2021.08.03"]
[WhiteClock "0:00:15"]
[BlackClock "0:00:10"]

1. d4 {[%clk 0:03:00]}  Nf6 {[%clk 0:02:59]} 2. Nf3 {[%clk 0:03:00]}  b6 {[%clk 0:02:59]} 3. c4 {[%clk 0:03:01]}  Bb7 {[%clk 0:03:00]} 4. Nc3 {[%clk 0:03:01]}  e6 {[%clk 0:03:00]} 5. Bg5 {[%clk 0:03:01]}  Bb4 {[%clk 0:03:00]} 6. e3 {[%clk 0:03:00]}  h6 {[%clk 0:02:51]} 7. Bh4 {[%clk 0:02:59]}  g5 {[%clk 0:02:51]} 8. Bg3 {[%clk 0:03:00]}  Ne4 {[%clk 0:02:51]} 9. Qc2 {[%clk 0:02:59]}  d6 {[%clk 0:02:48]} 10. Bd3 {[%clk 0:02:58]}  Bxc3+ {[%clk 0:02:47]} 11. bxc3 {[%clk 0:02:58]}  f5 {[%clk 0:02:47]} 12. d5 {[%clk 0:02:56]}  Nd7 {[%clk 0:02:33]} 13. Bxe4 {[%clk 0:02:53]}  fxe4 {[%clk 0:02:34]} 14. Qxe4 {[%clk 0:02:53]}  Nc5 {[%clk 0:02:35]} 15. Qg6+ {[%clk 0:02:52]}  Kd7 {[%clk 0:02:35]} 16. Nd4 {[%clk 0:02:38]}  Qe8 {[%clk 0:02:29]} 17. Qc2 {[%clk 0:01:57]}  e5 {[%clk 0:02:09]} 18. Qf5+ {[%clk 0:01:55]}  Ke7 {[%clk 0:02:06]} 19. Ne6 {[%clk 0:01:53]}  Nxe6 {[%clk 0:01:59]} 20. Qxe6+ {[%clk 0:01:52]}  Kd8 {[%clk 0:01:59]} 21. Qf6+ {[%clk 0:01:49]}  Kc8 {[%clk 0:01:57]} 22. h4 {[%clk 0:01:48]}  g4 {[%clk 0:01:55]} 23. Qf5+ {[%clk 0:01:44]}  Qd7 {[%clk 0:01:52]} 24. Qxd7+ {[%clk 0:01:44]}  Kxd7 {[%clk 0:01:51]} 25. Rb1 {[%clk 0:01:43]}  Rab8 {[%clk 0:01:44]} 26. Kd2 {[%clk 0:01:43]}  a5 {[%clk 0:01:45]} 27. h5 {[%clk 0:01:40]}  Ba6 {[%clk 0:01:44]} 28. Kd3 {[%clk 0:01:39]}  Rbf8 {[%clk 0:01:40]} 29. Rh4 {[%clk 0:01:28]}  Rhg8 {[%clk 0:01:40]} 30. a4 {[%clk 0:01:18]}  Rg5 {[%clk 0:01:39]} 31. Rhh1 {[%clk 0:01:15]}  e4+ {[%clk 0:01:25]} 32. Kd4 {[%clk 0:01:10]}  c5+ {[%clk 0:01:25]} 33. dxc6+ {[%clk 0:01:09]}  Kxc6 {[%clk 0:01:26]} 34. Kxe4 {[%clk 0:01:06]}  Bxc4 {[%clk 0:01:09]} 35. Kd4 {[%clk 0:01:05]}  Rc5 {[%clk 0:01:01]} 36. e4 {[%clk 0:01:01]}  Ba6 {[%clk 0:00:59]} 37. Rhc1 {[%clk 0:00:40]}  Rc4+ {[%clk 0:00:58]} 38. Ke3 {[%clk 0:00:40]}  Rxa4 {[%clk 0:00:53]} 39. f4 {[%clk 0:00:35]}  Re8 {[%clk 0:00:49]} 40. e5 {[%clk 0:00:35]}  dxe5 {[%clk 0:00:50]} 41. fxe5 {[%clk 0:00:35]}  Bc4 {[%clk 0:00:50]} 42. Rd1 {[%clk 0:00:30]}  Bd5 {[%clk 0:00:50]} 43. Rd4 {[%clk 0:00:24]}  Rxd4 {[%clk 0:00:35]} 44. cxd4 {[%clk 0:00:24]}  b5 {[%clk 0:00:33]} 45. Rc1+ {[%clk 0:00:24]}  Bc4 {[%clk 0:00:28]} 46. Rc2 {[%clk 0:00:21]}  Kd5 {[%clk 0:00:23]} 47. Rf2 {[%clk 0:00:20]}  a4 {[%clk 0:00:23]} 48. Rf6 {[%clk 0:00:19]}  Re6 {[%clk 0:00:16]} 49. Rf8 {[%clk 0:00:18]}  a3 {[%clk 0:00:11]} 50. Rd8+ {[%clk 0:00:18]}  Kc6 {[%clk 0:00:10]} 51. Ra8 {[%clk 0:00:18]}  a2 {[%clk 0:00:09]} 52. Ke4 {[%clk 0:00:16]}  Kb7 {[%clk 0:00:09]} 53. Ra3 {[%clk 0:00:15]}  Ra6 {[%clk 0:00:10]} 0-1


[Site "https://www.chess.com"]

[Event "Titled Tuesday Blitz August 3 2021"]
[White "Siddharth, Jagadeesh"]
[Black "MikeKorovin"]
[WhiteFideId "5818320"]
[WhiteElo "2127"]
[BlackElo "2722"]
[Result "0-1"]
[Round "05"]
[TimeControl "180+1"]
[Date "2021.08.03"]
[WhiteClock "0:00:05"]
[BlackClock "0:00:18"]

1. d4 {[%clk 0:02:58]}  Nf6 {[%clk 0:02:59]} 2. c4 {[%clk 0:02:58]}  e6 {[%clk 0:03:00]} 3. Nf3 {[%clk 0:02:58]}  Bb4+ {[%clk 0:03:01]} 4. Bd2 {[%clk 0:02:57]}  Qe7 {[%clk 0:03:01]} 5. g3 {[%clk 0:02:57]}  Nc6 {[%clk 0:03:02]} 6. Nc3 {[%clk 0:02:57]}  O-O {[%clk 0:03:00]} 7. Bg2 {[%clk 0:02:56]}  d6 {[%clk 0:02:59]} 8. O-O {[%clk 0:02:54]}  Bxc3 {[%clk 0:02:59]} 9. Bxc3 {[%clk 0:02:54]}  e5 {[%clk 0:03:00]} 10. d5 {[%clk 0:02:27]}  Nb8 {[%clk 0:02:59]} 11. Nd2 {[%clk 0:02:27]}  a5 {[%clk 0:02:58]} 12. e4 {[%clk 0:02:18]}  Nbd7 {[%clk 0:02:56]} 13. h3 {[%clk 0:02:11]}  Nc5 {[%clk 0:02:56]} 14. Qc2 {[%clk 0:02:07]}  b6 {[%clk 0:02:45]} 15. b3 {[%clk 0:02:04]}  Bd7 {[%clk 0:02:36]} 16. Rae1 {[%clk 0:01:37]}  Nh5 {[%clk 0:02:34]} 17. Kh2 {[%clk 0:01:33]}  f5 {[%clk 0:02:33]} 18. exf5 {[%clk 0:01:24]}  Bxf5 {[%clk 0:02:32]} 19. Ne4 {[%clk 0:01:25]}  Nf6 {[%clk 0:01:47]} 20. f3 {[%clk 0:00:58]}  Nfxe4 {[%clk 0:01:40]} 21. fxe4 {[%clk 0:00:56]}  Bg6 {[%clk 0:01:40]} 22. a3 {[%clk 0:00:40]}  a4 {[%clk 0:01:27]} 23. b4 {[%clk 0:00:38]}  Nb3 {[%clk 0:01:27]} 24. h4 {[%clk 0:00:32]}  Rxf1 {[%clk 0:01:26]} 25. Rxf1 {[%clk 0:00:31]}  Rf8 {[%clk 0:01:27]} 26. Qe2 {[%clk 0:00:20]}  Qe8 {[%clk 0:01:09]} 27. Bh3 {[%clk 0:00:18]}  Rxf1 {[%clk 0:01:08]} 28. Qxf1 {[%clk 0:00:19]}  Bxe4 {[%clk 0:01:03]} 29. Be6+ {[%clk 0:00:15]}  Kh8 {[%clk 0:01:04]} 30. Bd7 {[%clk 0:00:14]}  Qe7 {[%clk 0:01:00]} 31. Bxa4 {[%clk 0:00:14]}  Nd4 {[%clk 0:00:32]} 32. Bxd4 {[%clk 0:00:14]}  exd4 {[%clk 0:00:33]} 33. Qe2 {[%clk 0:00:15]}  d3 {[%clk 0:00:31]} 34. Qe3 {[%clk 0:00:15]}  Qe5 {[%clk 0:00:29]} 35. Bd1 {[%clk 0:00:08]}  Qb2+ {[%clk 0:00:26]} 36. Kh3 {[%clk 0:00:08]}  Qe5 {[%clk 0:00:19]} 37. Bg4 {[%clk 0:00:05]}  Bg2+ {[%clk 0:00:18]} 0-1


[Site "https://www.chess.com"]

[Event "Titled Tuesday Blitz August 3 2021"]
[White "Silva, Miguel Antonio Neto"]
[Black "Borsuk, Konstantin"]
[WhiteFideId "1911929"]
[BlackFideId "14113406"]
[WhiteElo "2283"]
[BlackElo "2363"]
[Result "1-0"]
[Round "05"]
[TimeControl "180+1"]
[Date "2021.08.03"]
[WhiteClock "0:00:42"]
[BlackClock "0:00:03"]

1. Nf3 {[%clk 0:02:58]}  b6 {[%clk 0:02:59]} 2. g3 {[%clk 0:02:57]}  Bb7 {[%clk 0:02:59]} 3. Bg2 {[%clk 0:02:58]}  g6 {[%clk 0:02:59]} 4. O-O {[%clk 0:02:58]}  Bg7 {[%clk 0:03:00]} 5. d4 {[%clk 0:02:53]}  Nf6 {[%clk 0:03:00]} 6. c4 {[%clk 0:02:53]}  O-O {[%clk 0:02:59]} 7. Nc3 {[%clk 0:02:52]}  Ne4 {[%clk 0:02:59]} 8. Qd3 {[%clk 0:02:50]}  Nxc3 {[%clk 0:02:59]} 9. bxc3 {[%clk 0:02:50]}  d6 {[%clk 0:02:48]} 10. Bg5 {[%clk 0:02:49]}  h6 {[%clk 0:02:47]} 11. Bd2 {[%clk 0:02:44]}  Nd7 {[%clk 0:02:46]} 12. Rfe1 {[%clk 0:02:44]}  c5 {[%clk 0:02:37]} 13. a4 {[%clk 0:02:39]}  Qc7 {[%clk 0:02:35]} 14. Rec1 {[%clk 0:02:38]}  e5 {[%clk 0:02:31]} 15. d5 {[%clk 0:02:24]}  f5 {[%clk 0:02:26]} 16. Nh4 {[%clk 0:02:24]}  e4 {[%clk 0:02:10]} 17. Qc2 {[%clk 0:02:20]}  Ne5 {[%clk 0:01:00]} 18. f4 {[%clk 0:02:12]}  exf3 {[%clk 0:01:00]} 19. exf3 {[%clk 0:02:12]}  g5 {[%clk 0:00:59]} 20. Nxf5 {[%clk 0:02:10]}  Nxc4 {[%clk 0:00:54]} 21. Re1 {[%clk 0:02:00]}  Rxf5 {[%clk 0:00:42]} 22. Qxf5 {[%clk 0:01:56]}  Nxd2 {[%clk 0:00:41]} 23. Re2 {[%clk 0:01:50]}  Nc4 {[%clk 0:00:33]} 24. f4 {[%clk 0:01:46]}  gxf4 {[%clk 0:00:28]} 25. Be4 {[%clk 0:01:40]}  Bxc3 {[%clk 0:00:27]} 26. Rf1 {[%clk 0:01:36]}  Rf8 {[%clk 0:00:20]} 27. Qe6+ {[%clk 0:01:33]}  Qf7 {[%clk 0:00:18]} 28. Qxh6 {[%clk 0:01:15]}  Bd4+ {[%clk 0:00:15]} 29. Kh1 {[%clk 0:01:10]}  Bxd5 {[%clk 0:00:14]} 30. Qg5+ {[%clk 0:01:07]}  Kh8 {[%clk 0:00:12]} 31. Bxd5 {[%clk 0:01:06]}  Qh7 {[%clk 0:00:10]} 32. Be4 {[%clk 0:01:00]}  Rg8 {[%clk 0:00:04]} 33. Qxf4 {[%clk 0:00:47]}  Qh5 {[%clk 0:00:03]} 34. Bf3 {[%clk 0:00:43]}  Qh7 {[%clk 0:00:03]} 35. Bd5 {[%clk 0:00:42]} 1-0


[Site "https://www.chess.com"]

[Event "Titled Tuesday Blitz August 3 2021"]
[White "Siniauski, Artsiom"]
[Black "Li, Eric"]
[WhiteFideId "13512269"]
[BlackFideId "30939941"]
[WhiteElo "2210"]
[BlackElo "1961"]
[Result "1-0"]
[Round "05"]
[TimeControl "180+1"]
[Date "2021.08.03"]
[WhiteClock "0:01:22"]
[BlackClock "0:00:47"]

1. e4 {[%clk 0:03:00]}  c5 {[%clk 0:02:57]} 2. Nf3 {[%clk 0:03:00]}  d6 {[%clk 0:02:56]} 3. Bb5+ {[%clk 0:02:55]}  Nd7 {[%clk 0:02:55]} 4. d4 {[%clk 0:02:54]}  cxd4 {[%clk 0:02:54]} 5. Qxd4 {[%clk 0:02:55]}  a6 {[%clk 0:02:52]} 6. Bxd7+ {[%clk 0:02:55]}  Bxd7 {[%clk 0:02:50]} 7. c4 {[%clk 0:02:55]}  Nf6 {[%clk 0:02:48]} 8. Bg5 {[%clk 0:02:54]}  Bc6 {[%clk 0:02:46]} 9. Bxf6 {[%clk 0:02:53]}  gxf6 {[%clk 0:02:45]} 10. Nc3 {[%clk 0:02:53]}  e6 {[%clk 0:02:44]} 11. O-O {[%clk 0:02:50]}  Rg8 {[%clk 0:02:43]} 12. Rfe1 {[%clk 0:02:47]}  Qa5 {[%clk 0:02:39]} 13. Nd5 {[%clk 0:02:38]}  Bxd5 {[%clk 0:02:19]} 14. exd5 {[%clk 0:02:35]}  e5 {[%clk 0:02:18]} 15. Qe4 {[%clk 0:02:30]}  h6 {[%clk 0:02:13]} 16. b4 {[%clk 0:02:24]}  Qc7 {[%clk 0:02:05]} 17. Rac1 {[%clk 0:02:18]}  Qd7 {[%clk 0:02:04]} 18. h3 {[%clk 0:02:14]}  b6 {[%clk 0:02:00]} 19. Kh2 {[%clk 0:02:12]}  f5 {[%clk 0:01:53]} 20. Qe3 {[%clk 0:02:09]}  Qc7 {[%clk 0:01:32]} 21. Nh4 {[%clk 0:02:01]}  Rg5 {[%clk 0:01:29]} 22. f4 {[%clk 0:02:00]}  Rh5 {[%clk 0:01:25]} 23. Nf3 {[%clk 0:01:39]}  e4 {[%clk 0:01:24]} 24. Nd4 {[%clk 0:01:39]}  Bg7 {[%clk 0:01:18]} 25. Nc6 {[%clk 0:01:36]}  Bf6 {[%clk 0:01:17]} 26. Qe2 {[%clk 0:01:34]}  Rh4 {[%clk 0:01:16]} 27. g3 {[%clk 0:01:35]}  Bg5 {[%clk 0:00:53]} 28. fxg5 {[%clk 0:01:30]}  hxg5 {[%clk 0:00:52]} 29. gxh4 {[%clk 0:01:29]}  gxh4 {[%clk 0:00:51]} 30. Qh5 {[%clk 0:01:29]}  Qc8 {[%clk 0:00:48]} 31. Qxh4 {[%clk 0:01:23]}  a5 {[%clk 0:00:47]} 32. Qe7# {[%clk 0:01:22]} 1-0


[Site "https://www.chess.com"]

[Event "Titled Tuesday Blitz August 3 2021"]
[White "Spata, German"]
[Black "Savitha Shri B"]
[WhiteFideId "113026"]
[BlackFideId "35061887"]
[WhiteElo "2238"]
[BlackElo "2006"]
[Result "1-0"]
[Round "05"]
[TimeControl "180+1"]
[Date "2021.08.03"]
[WhiteClock "0:01:26"]
[BlackClock "0:01:17"]

1. Nf3 {[%clk 0:02:53]}  c5 {[%clk 0:02:58]} 2. b3 {[%clk 0:02:52]}  d5 {[%clk 0:02:58]} 3. Bb2 {[%clk 0:02:52]}  Nc6 {[%clk 0:02:59]} 4. e3 {[%clk 0:02:52]}  Nf6 {[%clk 0:02:59]} 5. Bb5 {[%clk 0:02:51]}  e6 {[%clk 0:02:59]} 6. Ne5 {[%clk 0:02:51]}  Bd7 {[%clk 0:02:58]} 7. Bxc6 {[%clk 0:02:51]}  bxc6 {[%clk 0:02:59]} 8. O-O {[%clk 0:02:51]}  Qc7 {[%clk 0:02:59]} 9. d3 {[%clk 0:02:51]}  Bd6 {[%clk 0:02:59]} 10. f4 {[%clk 0:02:52]}  O-O {[%clk 0:02:42]} 11. Nd2 {[%clk 0:02:45]}  Bc8 {[%clk 0:02:34]} 12. Rf3 {[%clk 0:02:42]}  Nd7 {[%clk 0:02:24]} 13. Rh3 {[%clk 0:02:40]}  g6 {[%clk 0:02:22]} 14. Nxd7 {[%clk 0:02:24]}  Bxd7 {[%clk 0:02:16]} 15. Qh5 {[%clk 0:01:55]}  Rfb8 {[%clk 0:01:18]} 16. Qxh7+ {[%clk 0:01:42]}  Kf8 {[%clk 0:01:18]} 17. Qh8+ {[%clk 0:01:31]}  Ke7 {[%clk 0:01:17]} 18. Bf6# {[%clk 0:01:26]} 1-0


[Site "https://www.chess.com"]

[Event "Titled Tuesday Blitz August 3 2021"]
[White "Srihari L R"]
[Black "Urquhart, Ed"]
[WhiteFideId "46617116"]
[BlackFideId "2603748"]
[WhiteElo "2121"]
[BlackElo "2184"]
[Result "1-0"]
[Round "05"]
[TimeControl "180+1"]
[Date "2021.08.03"]
[WhiteClock "0:01:45"]
[BlackClock "0:00:46"]

1. d4 {[%clk 0:03:00]}  Nf6 {[%clk 0:02:59]} 2. Bg5 {[%clk 0:02:59]}  Ne4 {[%clk 0:02:59]} 3. Bf4 {[%clk 0:02:59]}  d5 {[%clk 0:02:59]} 4. f3 {[%clk 0:02:59]}  Nf6 {[%clk 0:03:00]} 5. e4 {[%clk 0:02:59]}  e6 {[%clk 0:03:00]} 6. e5 {[%clk 0:02:57]}  Nfd7 {[%clk 0:03:00]} 7. c3 {[%clk 0:02:57]}  c5 {[%clk 0:03:00]} 8. Be3 {[%clk 0:02:57]}  Nc6 {[%clk 0:03:00]} 9. f4 {[%clk 0:02:56]}  cxd4 {[%clk 0:02:59]} 10. cxd4 {[%clk 0:02:56]}  f5 {[%clk 0:02:50]} 11. Nf3 {[%clk 0:02:55]}  Be7 {[%clk 0:02:49]} 12. Nbd2 {[%clk 0:02:50]}  O-O {[%clk 0:02:49]} 13. a3 {[%clk 0:02:48]}  b6 {[%clk 0:02:49]} 14. Rc1 {[%clk 0:02:46]}  Bb7 {[%clk 0:02:49]} 15. Bb5 {[%clk 0:02:45]}  Rc8 {[%clk 0:02:48]} 16. O-O {[%clk 0:02:45]}  a6 {[%clk 0:02:45]} 17. Bd3 {[%clk 0:02:43]}  b5 {[%clk 0:02:40]} 18. Qe2 {[%clk 0:02:38]}  Na5 {[%clk 0:02:39]} 19. h3 {[%clk 0:02:32]}  Nc4 {[%clk 0:02:39]} 20. Kh2 {[%clk 0:02:27]}  Nxb2 {[%clk 0:02:30]} 21. Rxc8 {[%clk 0:02:26]}  Bxc8 {[%clk 0:02:27]} 22. Bb1 {[%clk 0:02:24]}  Nc4 {[%clk 0:02:26]} 23. a4 {[%clk 0:02:23]}  Ndb6 {[%clk 0:02:18]} 24. axb5 {[%clk 0:02:21]}  axb5 {[%clk 0:02:19]} 25. g4 {[%clk 0:02:21]}  g6 {[%clk 0:02:18]} 26. gxf5 {[%clk 0:02:16]}  exf5 {[%clk 0:02:16]} 27. Bf2 {[%clk 0:02:16]}  Be6 {[%clk 0:02:08]} 28. Nb3 {[%clk 0:02:14]}  Na4 {[%clk 0:01:50]} 29. Nc5 {[%clk 0:02:12]}  Nxc5 {[%clk 0:01:41]} 30. dxc5 {[%clk 0:02:12]}  Qc7 {[%clk 0:01:40]} 31. Nd4 {[%clk 0:02:11]}  Bd7 {[%clk 0:01:35]} 32. Qf3 {[%clk 0:02:00]}  Bxc5 {[%clk 0:01:33]} 33. Qxd5+ {[%clk 0:01:59]}  Kh8 {[%clk 0:01:31]} 34. Nxb5 {[%clk 0:01:56]}  Bxb5 {[%clk 0:01:24]} 35. Bxc5 {[%clk 0:01:54]}  Rd8 {[%clk 0:01:22]} 36. Bd6 {[%clk 0:01:49]}  Nxd6 {[%clk 0:01:20]} 37. exd6 {[%clk 0:01:49]}  Qb6 {[%clk 0:00:46]} 38. Qe5+ {[%clk 0:01:46]}  Kg8 {[%clk 0:00:46]} 39. Ba2+ {[%clk 0:01:45]} 1-0


[Site "https://www.chess.com"]

[Event "Titled Tuesday Blitz August 3 2021"]
[White "Ter-Sahakyan, Samvel"]
[Black "Abdusattorov, Nodirbek"]
[WhiteFideId "13302531"]
[BlackFideId "14204118"]
[WhiteElo "2551"]
[BlackElo "2662"]
[Result "0-1"]
[Round "05"]
[TimeControl "180+1"]
[Date "2021.08.03"]
[WhiteClock "0:00:08"]
[BlackClock "0:00:54"]

1. Nf3 {[%clk 0:03:00]}  Nf6 {[%clk 0:02:59]} 2. b3 {[%clk 0:02:59]}  g6 {[%clk 0:02:53]} 3. Bb2 {[%clk 0:02:59]}  Bg7 {[%clk 0:02:53]} 4. e3 {[%clk 0:02:59]}  d6 {[%clk 0:02:53]} 5. d4 {[%clk 0:02:58]}  O-O {[%clk 0:02:52]} 6. Be2 {[%clk 0:02:58]}  a5 {[%clk 0:02:52]} 7. a3 {[%clk 0:02:51]}  Nc6 {[%clk 0:02:51]} 8. O-O {[%clk 0:02:39]}  Nd7 {[%clk 0:02:51]} 9. c4 {[%clk 0:02:34]}  e5 {[%clk 0:02:50]} 10. Nc3 {[%clk 0:02:30]}  Re8 {[%clk 0:02:34]} 11. Nb5 {[%clk 0:02:17]}  e4 {[%clk 0:02:32]} 12. Nd2 {[%clk 0:02:16]}  f5 {[%clk 0:02:29]} 13. Qc2 {[%clk 0:02:11]}  Nf6 {[%clk 0:02:28]} 14. Bc3 {[%clk 0:01:59]}  Bd7 {[%clk 0:02:22]} 15. b4 {[%clk 0:01:52]}  a4 {[%clk 0:02:21]} 16. Bb2 {[%clk 0:01:48]}  g5 {[%clk 0:02:19]} 17. Nc3 {[%clk 0:01:47]}  Ne7 {[%clk 0:02:15]} 18. Rae1 {[%clk 0:01:44]}  Ng6 {[%clk 0:02:15]} 19. f3 {[%clk 0:01:37]}  exf3 {[%clk 0:01:58]} 20. Bxf3 {[%clk 0:01:35]}  c6 {[%clk 0:01:58]} 21. Qb1 {[%clk 0:01:02]}  g4 {[%clk 0:01:55]} 22. Bd1 {[%clk 0:01:02]}  Bh6 {[%clk 0:01:56]} 23. Qd3 {[%clk 0:00:58]}  Qe7 {[%clk 0:01:56]} 24. Bc2 {[%clk 0:00:46]}  Bxe3+ {[%clk 0:01:47]} 25. Kh1 {[%clk 0:00:46]}  g3 {[%clk 0:01:10]} 26. Nd1 {[%clk 0:00:36]}  Ng4 {[%clk 0:01:08]} 27. Nxe3 {[%clk 0:00:27]}  Nf2+ {[%clk 0:01:08]} 28. Rxf2 {[%clk 0:00:21]}  gxf2 {[%clk 0:01:09]} 29. Re2 {[%clk 0:00:20]}  Nf4 {[%clk 0:01:09]} 30. Nxf5 {[%clk 0:00:14]}  Qxe2 {[%clk 0:01:06]} 31. Qg3+ {[%clk 0:00:08]}  Ng6 {[%clk 0:01:02]} 32. Nh6+ {[%clk 0:00:08]}  Kg7 {[%clk 0:00:53]} 33. d5+ {[%clk 0:00:08]}  Kxh6 {[%clk 0:00:54]} 0-1


[Site "https://www.chess.com"]

[Event "Titled Tuesday Blitz August 3 2021"]
[White "Trent, Lawrence"]
[Black "Siva Mahadevan"]
[WhiteFideId "408638"]
[BlackFideId "25043153"]
[WhiteElo "2474"]
[BlackElo "2203"]
[Result "1-0"]
[Round "05"]
[TimeControl "180+1"]
[Date "2021.08.03"]
[WhiteClock "0:01:13"]
[BlackClock "0:00:21"]

1. e4 {[%clk 0:03:00]}  c5 {[%clk 0:02:56]} 2. Nf3 {[%clk 0:02:55]}  Nc6 {[%clk 0:02:55]} 3. Nc3 {[%clk 0:02:52]}  Nf6 {[%clk 0:02:53]} 4. Bb5 {[%clk 0:02:51]}  Nd4 {[%clk 0:02:51]} 5. e5 {[%clk 0:02:52]}  Nxb5 {[%clk 0:02:51]} 6. Nxb5 {[%clk 0:02:52]}  Nd5 {[%clk 0:02:51]} 7. Ng5 {[%clk 0:02:52]}  f6 {[%clk 0:02:50]} 8. exf6 {[%clk 0:02:49]}  Nxf6 {[%clk 0:02:32]} 9. O-O {[%clk 0:02:47]}  g6 {[%clk 0:02:21]} 10. d4 {[%clk 0:02:47]}  cxd4 {[%clk 0:02:19]} 11. Qxd4 {[%clk 0:02:46]}  Bg7 {[%clk 0:02:15]} 12. Qc4 {[%clk 0:02:16]}  d5 {[%clk 0:01:08]} 13. Nc7+ {[%clk 0:02:14]}  Kf8 {[%clk 0:01:06]} 14. Qf4 {[%clk 0:02:00]}  Kg8 {[%clk 0:00:54]} 15. Nxa8 {[%clk 0:01:58]}  h6 {[%clk 0:00:53]} 16. Nf3 {[%clk 0:01:57]}  Nh5 {[%clk 0:00:49]} 17. Qc7 {[%clk 0:01:56]}  Qf8 {[%clk 0:00:50]} 18. Re1 {[%clk 0:01:49]}  Bf6 {[%clk 0:00:38]} 19. Qc5 {[%clk 0:01:39]}  Bg4 {[%clk 0:00:33]} 20. Qxd5+ {[%clk 0:01:34]}  Kh7 {[%clk 0:00:33]} 21. Nc7 {[%clk 0:01:33]}  Qc8 {[%clk 0:00:31]} 22. Ne6 {[%clk 0:01:23]}  Qxc2 {[%clk 0:00:29]} 23. h3 {[%clk 0:01:19]}  Bf5 {[%clk 0:00:26]} 24. Ned4 {[%clk 0:01:18]}  Qd3 {[%clk 0:00:21]} 25. Qb3 {[%clk 0:01:13]} 1-0


[Site "https://www.chess.com"]

[Event "Titled Tuesday Blitz August 3 2021"]
[White "Wyde, David"]
[Black "Florescu, Codrut-Constantin"]
[WhiteFideId "2028107"]
[BlackFideId "1202200"]
[WhiteElo "2394"]
[BlackElo "2243"]
[Result "1/2-1/2"]
[Round "05"]
[TimeControl "180+1"]
[Date "2021.08.03"]
[WhiteClock "0:00:04"]
[BlackClock "0:00:29"]

1. d4 {[%clk 0:03:00]}  Nf6 {[%clk 0:02:59]} 2. c4 {[%clk 0:03:00]}  e6 {[%clk 0:02:59]} 3. Nc3 {[%clk 0:02:59]}  Bb4 {[%clk 0:02:59]} 4. e3 {[%clk 0:02:59]}  b6 {[%clk 0:02:59]} 5. Bd3 {[%clk 0:02:58]}  Bb7 {[%clk 0:02:57]} 6. Nf3 {[%clk 0:02:57]}  Ne4 {[%clk 0:02:57]} 7. Qc2 {[%clk 0:02:41]}  f5 {[%clk 0:02:56]} 8. O-O {[%clk 0:02:35]}  Bxc3 {[%clk 0:02:56]} 9. bxc3 {[%clk 0:02:34]}  O-O {[%clk 0:02:55]} 10. Ne1 {[%clk 0:02:32]}  Rf6 {[%clk 0:02:44]} 11. f3 {[%clk 0:02:32]}  Ng5 {[%clk 0:02:44]} 12. e4 {[%clk 0:02:19]}  fxe4 {[%clk 0:02:40]} 13. Bxg5 {[%clk 0:02:01]}  exd3 {[%clk 0:02:40]} 14. Nxd3 {[%clk 0:01:40]}  Nc6 {[%clk 0:02:37]} 15. Ne5 {[%clk 0:01:30]}  Na5 {[%clk 0:02:35]} 16. Ng4 {[%clk 0:01:21]}  Nxc4 {[%clk 0:02:29]} 17. Qe2 {[%clk 0:01:17]}  Nd6 {[%clk 0:02:26]} 18. Qe5 {[%clk 0:01:02]}  Ne8 {[%clk 0:02:21]} 19. Bxf6 {[%clk 0:00:42]}  Nxf6 {[%clk 0:02:18]} 20. Nxf6+ {[%clk 0:00:42]}  gxf6 {[%clk 0:02:19]} 21. Qf4 {[%clk 0:00:39]}  Kh8 {[%clk 0:02:15]} 22. Rfe1 {[%clk 0:00:38]}  Rc8 {[%clk 0:02:12]} 23. c4 {[%clk 0:00:28]}  Qf8 {[%clk 0:02:11]} 24. Rad1 {[%clk 0:00:26]}  Qg7 {[%clk 0:02:09]} 25. Kh1 {[%clk 0:00:26]}  Rg8 {[%clk 0:02:02]} 26. Re2 {[%clk 0:00:24]}  d6 {[%clk 0:02:01]} 27. Rdd2 {[%clk 0:00:18]}  e5 {[%clk 0:01:54]} 28. dxe5 {[%clk 0:00:18]}  fxe5 {[%clk 0:01:54]} 29. Qe3 {[%clk 0:00:17]}  Rf8 {[%clk 0:01:50]} 30. Rf2 {[%clk 0:00:16]}  Qf6 {[%clk 0:01:48]} 31. Rf1 {[%clk 0:00:15]}  a5 {[%clk 0:01:48]} 32. Kg1 {[%clk 0:00:14]}  Qf4 {[%clk 0:01:47]} 33. Qxf4 {[%clk 0:00:14]}  Rxf4 {[%clk 0:01:48]} 34. Rc1 {[%clk 0:00:15]}  Kg7 {[%clk 0:01:48]} 35. Kf2 {[%clk 0:00:14]}  Ba6 {[%clk 0:01:48]} 36. Rdc2 {[%clk 0:00:14]}  Rd4 {[%clk 0:01:48]} 37. Ke3 {[%clk 0:00:14]}  Kf6 {[%clk 0:01:48]} 38. g3 {[%clk 0:00:14]}  h5 {[%clk 0:01:48]} 39. f4 {[%clk 0:00:14]}  c5 {[%clk 0:01:47]} 40. fxe5+ {[%clk 0:00:14]}  Kxe5 {[%clk 0:01:47]} 41. Rf2 {[%clk 0:00:13]}  Bxc4 {[%clk 0:01:45]} 42. Rf4 {[%clk 0:00:09]}  Rd3+ {[%clk 0:01:39]} 43. Kf2 {[%clk 0:00:08]}  Bxa2 {[%clk 0:01:35]} 44. Rh4 {[%clk 0:00:08]}  d5 {[%clk 0:01:35]} 45. Rxh5+ {[%clk 0:00:08]}  Kd4 {[%clk 0:01:35]} 46. Rh6 {[%clk 0:00:08]}  Rb3 {[%clk 0:01:30]} 47. h4 {[%clk 0:00:07]}  Rb2+ {[%clk 0:01:26]} 48. Kf3 {[%clk 0:00:07]}  Kd3 {[%clk 0:01:26]} 49. h5 {[%clk 0:00:08]}  d4 {[%clk 0:01:26]} 50. Rd6 {[%clk 0:00:07]}  Rh2 {[%clk 0:01:24]} 51. Kg4 {[%clk 0:00:06]}  Kd2 {[%clk 0:01:20]} 52. Ra1 {[%clk 0:00:05]}  Bb3 {[%clk 0:01:20]} 53. Rxb6 {[%clk 0:00:05]}  c4 {[%clk 0:01:20]} 54. h6 {[%clk 0:00:05]}  d3 {[%clk 0:01:18]} 55. Rxa5 {[%clk 0:00:05]}  Bc2 {[%clk 0:01:16]} 56. Rc5 {[%clk 0:00:05]}  Bd1+ {[%clk 0:01:17]} 57. Kg5 {[%clk 0:00:05]}  c3 {[%clk 0:01:18]} 58. Rbc6 {[%clk 0:00:05]}  Rh5+ {[%clk 0:01:17]} 59. Kg6 {[%clk 0:00:04]}  Rh3 {[%clk 0:01:14]} 60. Rxc3 {[%clk 0:00:04]}  Rxg3+ {[%clk 0:01:14]} 61. Kf7 {[%clk 0:00:05]}  Ba4 {[%clk 0:01:12]} 62. Rc7 {[%clk 0:00:04]}  Rf3+ {[%clk 0:01:11]} 63. Kg8 {[%clk 0:00:04]}  Rg3+ {[%clk 0:01:09]} 64. Kf8 {[%clk 0:00:03]}  Rf3+ {[%clk 0:01:03]} 65. Ke7 {[%clk 0:00:04]}  Rh3 {[%clk 0:01:02]} 66. R3c4 {[%clk 0:00:02]}  Bb3 {[%clk 0:00:57]} 67. R4c6 {[%clk 0:00:02]}  Ke2 {[%clk 0:00:54]} 68. Rf6 {[%clk 0:00:03]}  d2 {[%clk 0:00:52]} 69. Rd7 {[%clk 0:00:03]}  d1=Q {[%clk 0:00:51]} 70. Rxd1 {[%clk 0:00:04]}  Bxd1 {[%clk 0:00:52]} 71. Kf8 {[%clk 0:00:04]}  Bc2 {[%clk 0:00:52]} 72. Kg7 {[%clk 0:00:05]}  Ke3 {[%clk 0:00:50]} 73. Rf8 {[%clk 0:00:05]}  Rg3+ {[%clk 0:00:49]} 74. Kh8 {[%clk 0:00:04]}  Rh3 {[%clk 0:00:48]} 75. Kg7 {[%clk 0:00:03]}  Kd4 {[%clk 0:00:48]} 76. Rh8 {[%clk 0:00:02]}  Ke5 {[%clk 0:00:46]} 77. h7 {[%clk 0:00:02]}  Rg3+ {[%clk 0:00:46]} 78. Kf8 {[%clk 0:00:03]}  Rh3 {[%clk 0:00:39]} 79. Kg7 {[%clk 0:00:03]}  Rg3+ {[%clk 0:00:38]} 80. Kh6 {[%clk 0:00:04]}  Rh3+ {[%clk 0:00:29]} 81. Kg7 {[%clk 0:00:04]} 1/2-1/2


[Site "https://www.chess.com"]